[Event "Kvibergspelen September 2019"]
[Site "Prioritet Serneke Arena, Krutvagen 2, Gothenburg, Sweden"]
[Date "2019.09.28"]
[Round "6.14"]
[White "Sjoberg, Isak"]
[Black "Johansson, Gunnar"]
[Result "1/2-1/2"]
[TimeControl "15 minutes + 5 seconds per move from move one (Round 1 - 4) / 90 minutes + 30 seconds per move from move one (Round 5 - 8)"]
[WhiteFideId "1521640"]
[BlackFideId "1703501"]
[WhiteElo "2231"]
[BlackElo "2183"]

1. e4 {[%clk 01:22:30]} {[%emt 00:00:27]} c5 {[%clk 01:30:40]} {[%emt
00:00:20]} 2. Nf3 {[%clk 01:22:22]} {[%emt 00:00:37]} e6 {[%clk 01:31:00]}
{[%emt 00:00:11]} 3. d4 {[%clk 01:21:26]} {[%emt 00:01:27]} cxd4 {[%clk
01:31:19]} {[%emt 00:00:11]} 4. Nxd4 {[%clk 01:21:16]} {[%emt 00:00:39]} Nc6
{[%clk 01:31:31]} {[%emt 00:00:17]} 5. Nb5 {[%clk 01:21:40]} {[%emt 00:00:07]}
d6 {[%clk 01:31:22]} {[%emt 00:00:38]} 6. c4 {[%clk 01:22:02]} {[%emt
00:00:09]} Nf6 {[%clk 01:31:43]} {[%emt 00:00:09]} 7. N1c3 {[%clk 01:22:26]}
{[%emt 00:00:05]} a6 {[%clk 01:32:06]} {[%emt 00:00:07]} 8. Na3 {[%clk
01:22:31]} {[%emt 00:00:26]} b6 {[%clk 01:32:10]} {[%emt 00:00:26]} 9. Be2
{[%clk 01:22:12]} {[%emt 00:00:49]} Bb7 {[%clk 01:32:27]} {[%emt 00:00:13]} 10.
O-O {[%clk 01:22:33]} {[%emt 00:00:09]} Be7 {[%clk 01:32:33]} {[%emt 00:00:24]}
11. Be3 {[%clk 01:21:58]} {[%emt 00:01:03]} O-O {[%clk 01:32:47]} {[%emt
00:00:17]} 12. Qb3 {[%clk 01:20:41]} {[%emt 00:01:47]} Nd7 {[%clk 01:32:59]}
{[%emt 00:00:19]} 13. Rad1 {[%clk 01:20:31]} {[%emt 00:00:39]} Nc5 {[%clk
01:26:58]} {[%emt 00:06:32]} 14. Qc2 {[%clk 01:20:53]} {[%emt 00:00:08]} Qc7
{[%clk 01:24:41]} {[%emt 00:02:46]} 15. Qd2 {[%clk 01:19:27]} {[%emt 00:01:56]}
Rad8 {[%clk 01:23:38]} {[%emt 00:01:34]} 16. f4 {[%clk 01:19:47]} {[%emt
00:00:07]} Bf6 {[%clk 01:15:52]} {[%emt 00:08:18]} 17. Bf3 {[%clk 01:19:56]}
{[%emt 00:00:21]} Nb4 {[%clk 01:05:13]} {[%emt 00:11:10]} 18. Ncb5 {[%emt
00:13:48]} axb5 {[%clk 01:05:12]} {[%emt 00:00:02]} 19. Nxb5 {[%clk 01:06:55]}
{[%emt 00:00:43]} Qb8 {[%clk 01:02:50]} {[%emt 00:02:51]} 20. Qxb4 {[%clk
01:07:17]} {[%emt 00:00:07]} Bxe4 {[%clk 01:01:06]} {[%emt 00:02:14]} 21. Qa3
{[%clk 00:52:47]} {[%emt 00:15:00]} Bxf3 {[%clk 00:58:51]} {[%emt 00:02:46]} 22.
Rxf3 {[%clk 00:52:37]} {[%emt 00:00:40]} Rd7 {[%clk 00:48:08]} {[%emt
00:11:13]} 23. f5 {[%clk 00:39:42]} {[%emt 00:13:25]} d5 {[%clk 00:28:57]}
{[%emt 00:19:41]} 24. fxe6 {[%clk 00:28:58]} {[%emt 00:11:13]} fxe6 {[%clk
00:29:06]} {[%emt 00:00:22]} 25. cxd5 {[%clk 00:27:10]} {[%emt 00:02:18]} exd5
{[%clk 00:28:44]} {[%emt 00:00:51]} 26. b4 {[%clk 00:22:35]} {[%emt 00:05:06]}
Ne4 {[%clk 00:21:17]} {[%emt 00:07:57]} 27. Qb3 {[%clk 00:22:52]} {[%emt
00:00:12]} Qb7 {[%clk 00:20:19]} {[%emt 00:01:29]} 28. Nd4 {[%clk 00:17:27]}
{[%emt 00:05:55]} Rc8 {[%clk 00:19:33]} {[%emt 00:01:15]} 29. Ne2 {[%clk
00:10:32]} {[%emt 00:07:26]} Nc3 {[%clk 00:17:58]} {[%emt 00:02:04]} 30. Nxc3
{[%clk 00:09:10]} {[%emt 00:01:53]} Rxc3 {[%clk 00:18:24]} {[%emt 00:00:04]} 31.
Qb1 {[%clk 00:09:36]} {[%emt 00:00:04]} d4 {[%clk 00:15:55]} {[%emt 00:02:58]}
32. Qf5 {[%clk 00:09:55]} {[%emt 00:00:10]} Rd8 {[%clk 00:07:18]} {[%emt
00:09:07]} 33. Qe6+ {[%clk 00:07:28]} {[%emt 00:02:58]} Qf7 {[%clk 00:05:02]}
{[%emt 00:02:45]} 34. Qxb6 {[%clk 00:07:56]} {[%emt 00:00:03]} Qe7 {[%clk
00:05:03]} {[%emt 00:00:29]} 35. Bf2 {[%clk 00:06:06]} {[%emt 00:02:20]} Rxf3
36. gxf3 {[%clk 00:06:35]} Qe2 {[%clk 00:05:01]} {[%emt 00:00:41]} 37. Re1
{[%clk 00:06:52]} {[%emt 00:00:12]} Qxf3 {[%clk 00:04:43]} {[%emt 00:00:48]} 38.
Qe6+ {[%clk 00:07:13]} {[%emt 00:00:09]} Kf8 {[%clk 00:05:04]} {[%emt
00:00:09]} 39. Bg3 {[%clk 00:03:06]} {[%emt 00:04:38]} Qd5 {[%clk 00:05:29]}
{[%emt 00:00:04]} 40. Qxd5 {[%clk 00:02:27]} {[%emt 00:01:10]} Rxd5 {[%clk
00:05:57]} {[%emt 00:00:03]} 41. Rd1 {[%clk 00:02:39]} {[%emt 00:00:18]} d3
{[%clk 00:06:03]} {[%emt 00:00:24]} 42. Kf2 {[%clk 00:02:29]} {[%emt 00:00:40]}
Bc3 {[%clk 00:02:24]} {[%emt 00:04:09]} 43. b5 {[%clk 00:02:15]} {[%emt
00:00:44]} Rxb5 {[%clk 00:02:06]} {[%emt 00:00:47]} 44. Rxd3 {[%clk 00:02:39]}
{[%emt 00:00:06]} Rb2+ {[%clk 00:02:23]} {[%emt 00:00:13]} 45. Kf3 {[%clk
00:02:59]} {[%emt 00:00:09]} Bf6 {[%clk 00:02:34]} {[%emt 00:00:20]} 46. Ra3
{[%clk 00:02:14]} {[%emt 00:01:15]} Kf7 {[%clk 00:02:48]} {[%emt 00:00:16]} 47.
Ke4 {[%emt 00:00:30]} 1/2-1/2

[Event "Kvibergspelen September 2019"]
[Site "Prioritet Serneke Arena, Krutvagen 2, Gothenburg, Sweden"]
[Date "2019.09.28"]
[Round "6.15"]
[White "Torngren, Gustav"]
[Black "Bruaset, Eivind"]
[Result "1/2-1/2"]
[TimeControl "15 minutes + 5 seconds per move from move one (Round 1 - 4) / 90 minutes + 30 seconds per move from move one (Round 5 - 8)"]
[WhiteTitle "CM"]
[WhiteFideId "1728970"]
[BlackFideId "1515276"]
[WhiteElo "2227"]
[BlackElo "2181"]

1. g3 {[%clk 01:30:37]} {[%emt 00:00:22]} Nf6 {[%clk 01:30:24]} {[%emt
00:00:37]} 2. c4 {[%clk 01:30:09]} {[%emt 00:00:58]} e6 {[%clk 01:30:31]}
{[%emt 00:00:23]} 3. Bg2 {[%clk 01:30:20]} {[%emt 00:00:18]} d5 {[%clk
01:30:39]} {[%emt 00:00:23]} 4. Nf3 {[%clk 01:29:07]} {[%emt 00:01:43]} Be7
{[%clk 01:30:52]} {[%emt 00:00:17]} 5. O-O {[%clk 01:29:15]} {[%emt 00:00:22]}
O-O {[%clk 01:31:14]} {[%emt 00:00:08]} 6. d3 {[%clk 01:24:38]} {[%emt
00:05:06]} b6 {[%clk 01:24:12]} {[%emt 00:07:33]} 7. b3 {[%clk 01:22:42]}
{[%emt 00:02:26]} Bb7 {[%clk 01:23:37]} {[%emt 00:01:05]} 8. Bb2 {[%clk
01:22:58]} {[%emt 00:00:13]} Nbd7 {[%clk 01:20:47]} {[%emt 00:03:20]} 9. Nbd2
{[%clk 01:20:18]} {[%emt 00:03:11]} c5 {[%clk 01:19:05]} {[%emt 00:02:13]} 10.
e3 {[%clk 01:18:05]} {[%emt 00:02:42]} Re8 {[%clk 01:08:06]} {[%emt 00:11:30]}
11. Qc2 {[%clk 01:14:19]} {[%emt 00:04:15]} Qc7 {[%clk 01:07:03]} {[%emt
00:01:34]} 12. Rac1 {[%clk 01:11:24]} {[%emt 00:03:25]} Rac8 {[%clk 01:06:24]}
{[%emt 00:01:09]} 13. Rfd1 {[%clk 01:10:48]} {[%emt 00:01:05]} Qb8 {[%clk
01:05:06]} {[%emt 00:01:49]} 14. Qb1 {[%clk 01:10:13]} {[%emt 00:01:05]} a6
{[%clk 00:58:52]} {[%emt 00:06:44]} 15. Qa1 {[%clk 01:08:31]} {[%emt 00:02:10]}
Bd6 {[%clk 00:53:38]} {[%emt 00:05:45]} 16. cxd5 {[%clk 01:04:51]} {[%emt
00:04:10]} exd5 {[%clk 00:52:54]} {[%emt 00:01:14]} 17. Bh3 {[%clk 01:01:22]}
{[%emt 00:03:59]} Rcd8 {[%clk 00:29:23]} {[%emt 00:24:02]} 18. Bxd7 {[%clk
00:51:57]} {[%emt 00:09:55]} Rxd7 {[%clk 00:29:11]} {[%emt 00:00:42]} 19. Bxf6
{[%clk 00:52:00]} {[%emt 00:00:26]} gxf6 {[%clk 00:29:31]} {[%emt 00:00:11]} 20.
Qxf6 {[%clk 00:52:16]} {[%emt 00:00:13]} Re6 {[%clk 00:26:46]} {[%emt
00:03:15]} 21. Qf5 {[%clk 00:52:13]} {[%emt 00:00:33]} Qd8 {[%clk 00:21:57]}
{[%emt 00:05:20]} 22. Nh4 {[%clk 00:41:11]} {[%emt 00:11:32]} Bf8 {[%clk
00:14:33]} {[%emt 00:07:55]} 23. Ndf3 {[%clk 00:40:51]} {[%emt 00:00:48]} Bg7
{[%clk 00:13:07]} {[%emt 00:01:57]} 24. d4 {[%clk 00:34:09]} {[%emt 00:07:12]}
Rc7 {[%clk 00:08:02]} {[%emt 00:05:35]} 25. Qb1 {[%clk 00:22:10]} {[%emt
00:12:29]} c4 {[%clk 00:05:42]} {[%emt 00:02:51]} 26. Ng2 {[%clk 00:21:58]}
{[%emt 00:00:41]} b5 {[%clk 00:04:49]} {[%emt 00:01:24]} 27. Nf4 {[%clk
00:22:23]} {[%emt 00:00:05]} Rh6 {[%clk 00:05:05]} {[%emt 00:00:14]} 28. Qf5
{[%clk 00:21:39]} {[%emt 00:01:13]} Qc8 {[%clk 00:04:49]} {[%emt 00:00:45]} 29.
Nh4 {[%clk 00:21:31]} {[%emt 00:00:38]} Rf6 {[%clk 00:03:02]} {[%emt 00:02:18]}
30. Qxc8+ {[%clk 00:21:49]} {[%emt 00:00:12]} Rxc8 {[%clk 00:03:22]} {[%emt
00:00:10]} 31. Nh5 {[%clk 00:22:11]} {[%emt 00:00:08]} Re6 {[%clk 00:03:18]}
{[%emt 00:00:34]} 32. Nxg7 {[%clk 00:22:19]} {[%emt 00:00:22]} Kxg7 {[%clk
00:03:46]} {[%emt 00:00:03]} 33. Ng2 {[%clk 00:10:49]} {[%emt 00:11:59]} a5
{[%clk 00:03:42]} {[%emt 00:00:34]} 34. Nf4 {[%clk 00:10:10]} {[%emt 00:01:10]}
Rb6 {[%clk 00:02:05]} {[%emt 00:02:07]} 35. Rd2 {[%clk 00:08:15]} {[%emt
00:02:25]} c3 {[%clk 00:01:33]} {[%emt 00:01:02]} 36. Rdc2 {[%clk 00:07:59]}
{[%emt 00:00:45]} b4 {[%clk 00:02:01]} {[%emt 00:00:02]} 37. f3 {[%clk
00:07:31]} {[%emt 00:00:58]} Rd6 {[%clk 00:01:50]} {[%emt 00:00:40]} 38. Nd3
{[%clk 00:06:08]} {[%emt 00:01:54]} Bc6 {[%clk 00:01:22]} {[%emt 00:00:58]} 39.
a4 {[%clk 00:05:38]} {[%emt 00:01:01]} f6 {[%clk 00:00:51]} {[%emt 00:01:01]}
40. Kf2 {[%clk 00:05:53]} {[%emt 00:00:14]} Be8 {[%clk 00:01:16]} {[%emt
00:00:06]} 41. Nf4 {[%clk 00:03:55]} {[%emt 00:02:27]} Bg6 {[%clk 00:01:02]}
{[%emt 00:00:44]} 42. Nxg6 {[%clk 00:04:22]} {[%emt 00:00:03]} hxg6 {[%clk
00:01:22]} {[%emt 00:00:10]} 43. Ke2 {[%clk 00:04:42]} {[%emt 00:00:11]} Re6
{[%clk 00:01:29]} {[%emt 00:00:23]} 44. Kd3 {[%clk 00:05:05]} {[%emt 00:00:06]}
Rce8 {[%clk 00:01:49]} {[%emt 00:00:11]} 45. Re1 {[%clk 00:05:12]} {[%emt
00:00:22]} f5 {[%clk 00:02:06]} {[%emt 00:00:13]} 46. h4 {[%clk 00:05:10]}
{[%emt 00:00:32]} Rf6 {[%clk 00:02:10]} {[%emt 00:00:27]} 47. Rh2 {[%clk
00:05:23]} {[%emt 00:00:16]} f4 {[%clk 00:02:05]} {[%emt 00:00:36]} 48. gxf4
{[%clk 00:02:01]} {[%emt 00:03:52]} Rxf4 {[%clk 00:02:26]} {[%emt 00:00:09]} 49.
Rh3 {[%clk 00:01:07]} {[%emt 00:01:23]} Rf5 {[%clk 00:02:09]} {[%emt 00:00:47]}
50. f4 {[%clk 00:01:33]} {[%emt 00:00:03]} Rxf4 {[%clk 00:01:55]} {[%emt
00:00:45]} 51. Re2 {[%clk 00:00:55]} {[%emt 00:01:09]} Rf1 {[%clk 00:01:48]}
{[%emt 00:00:37]} 52. Rg2 {[%clk 00:01:05]} {[%emt 00:00:20]} Rd1+ {[%clk
00:01:50]} {[%emt 00:00:28]} 53. Kc2 {[%clk 00:01:21]} {[%emt 00:00:14]} Ra1
{[%clk 00:02:18]} {[%emt 00:00:02]} 54. Rhg3 {[%clk 00:00:45]} {[%emt
00:01:05]} Rxe3 {[%clk 00:01:00]} {[%emt 00:01:49]} 55. Rxg6+ {[%clk 00:00:42]}
{[%emt 00:00:34]} Kf7 {[%clk 00:01:28]} {[%emt 00:00:02]} 56. Rg7+ {[%clk
00:00:57]} {[%emt 00:00:15]} Kf8 {[%clk 00:01:39]} {[%emt 00:00:19]} 57. Rg8+
{[%clk 00:01:20]} {[%emt 00:00:07]} Kf7 {[%clk 00:02:00]} {[%emt 00:00:09]} 58.
R8g7+ {[%clk 00:01:40]} {[%emt 00:00:09]} Kf8 {[%clk 00:01:58]} {[%emt
00:00:32]} 59. Rg8+ {[%emt 00:00:12]} 1/2-1/2

[Event "Kvibergspelen September 2019"]
[Site "Prioritet Serneke Arena, Krutvagen 2, Gothenburg, Sweden"]
[Date "2019.09.28"]
[Round "6.16"]
[White "Pham, Bich Ngoc"]
[Black "Muntean, Victor"]
[Result "1-0"]
[TimeControl "15 minutes + 5 seconds per move from move one (Round 1 - 4) / 90 minutes + 30 seconds per move from move one (Round 5 - 8)"]
[WhiteTitle "WIM"]
[WhiteFideId "12401285"]
[BlackFideId "1054414"]
[WhiteElo "2244"]
[BlackElo "2020"]

1. g3 {[%clk 01:30:54]} {[%emt 00:00:05]} g6 {[%clk 01:30:47]} {[%emt
00:00:14]} 2. f4 {[%clk 01:31:16]} {[%emt 00:00:07]} Bg7 {[%clk 01:30:34]}
{[%emt 00:00:43]} 3. Nf3 {[%clk 01:31:34]} {[%emt 00:00:11]} Nf6 {[%clk
01:28:52]} {[%emt 00:02:13]} 4. Bg2 {[%clk 01:31:55]} {[%emt 00:00:08]} d6
{[%clk 01:27:48]} {[%emt 00:01:35]} 5. d3 {[%clk 01:32:10]} {[%emt 00:00:15]}
Nc6 {[%clk 01:24:19]} {[%emt 00:04:00]} 6. e4 {[%clk 01:30:59]} {[%emt
00:01:40]} e5 {[%clk 01:20:45]} {[%emt 00:04:04]} 7. Nc3 {[%clk 01:29:14]}
{[%emt 00:02:15]} O-O {[%clk 01:18:32]} {[%emt 00:02:44]} 8. O-O {[%clk
01:29:34]} {[%emt 00:00:09]} Be6 {[%clk 01:07:48]} {[%emt 00:11:14]} 9. f5
{[%clk 01:27:10]} {[%emt 00:02:54]} gxf5 {[%clk 01:05:47]} {[%emt 00:02:32]} 10.
exf5 {[%clk 01:27:13]} {[%emt 00:00:26]} Bxf5 {[%clk 01:05:59]} {[%emt
00:00:18]} 11. Nxe5 {[%clk 01:25:32]} {[%emt 00:02:11]} dxe5 {[%clk 01:01:26]}
{[%emt 00:05:04]} 12. Rxf5 {[%clk 01:25:53]} {[%emt 00:00:08]} Qd4+ {[%clk
00:59:37]} {[%emt 00:02:20]} 13. Kh1 {[%clk 01:26:06]} {[%emt 00:00:15]} Ne7
{[%clk 00:58:44]} {[%emt 00:01:25]} 14. Rf1 {[%clk 01:25:01]} {[%emt 00:01:34]}
c6 {[%clk 00:57:18]} {[%emt 00:01:56]} 15. Bg5 {[%clk 01:18:39]} {[%emt
00:06:52]} Nfd5 {[%clk 00:56:21]} {[%emt 00:01:27]} 16. Nxd5 {[%clk 01:15:47]}
{[%emt 00:03:23]} Nxd5 {[%clk 00:56:23]} {[%emt 00:00:27]} 17. Be4 {[%clk
01:14:27]} {[%emt 00:01:50]} Ne3 {[%clk 00:49:37]} {[%emt 00:07:16]} 18. Qh5
{[%clk 01:14:00]} {[%emt 00:00:57]} f5 {[%clk 00:49:58]} {[%emt 00:00:09]} 19.
Bxe3 {[%clk 01:14:01]} {[%emt 00:00:29]} Qxe3 {[%clk 00:50:21]} {[%emt
00:00:07]} 20. Bxf5 {[%clk 01:13:20]} {[%emt 00:01:11]} Qh6 {[%clk 00:49:59]}
{[%emt 00:00:53]} 21. Qg4 {[%clk 01:09:11]} {[%emt 00:04:38]} Kh8 {[%clk
00:47:35]} {[%emt 00:02:54]} 22. Rae1 {[%clk 01:08:42]} {[%emt 00:00:59]} Rae8
{[%clk 00:42:17]} {[%emt 00:05:49]} 23. Qe4 {[%clk 01:06:33]} {[%emt 00:02:38]}
Re7 {[%clk 00:40:36]} {[%emt 00:02:11]} 24. Re3 {[%clk 01:02:55]} {[%emt
00:04:08]} Ref7 {[%clk 00:39:03]} {[%emt 00:02:03]} 25. g4 {[%clk 01:02:25]}
{[%emt 00:01:00]} Rd8 {[%clk 00:36:01]} {[%emt 00:03:33]} 26. Ref3 {[%clk
00:59:54]} {[%emt 00:02:59]} Rd4 {[%clk 00:33:38]} {[%emt 00:02:55]} 27. Qe1
{[%clk 00:59:43]} {[%emt 00:00:40]} Rd8 {[%clk 00:28:33]} {[%emt 00:05:35]} 28.
Kg2 {[%clk 00:58:45]} {[%emt 00:01:28]} Rdf8 {[%clk 00:27:33]} {[%emt
00:01:31]} 29. Rh3 {[%clk 00:55:13]} {[%emt 00:04:01]} Qg5 {[%clk 00:24:12]}
{[%emt 00:03:52]} 30. Rxh7+ {[%clk 00:54:59]} {[%emt 00:00:43]} Kg8 {[%clk
00:24:32]} {[%emt 00:00:10]} 31. Rh5 {[%clk 00:55:05]} {[%emt 00:00:23]} Qxh5
{[%clk 00:24:29]} {[%emt 00:00:35]} 32. gxh5 {[%clk 00:55:28]} {[%emt
00:00:06]} Rxf5 {[%clk 00:24:54]} {[%emt 00:00:06]} 33. Rxf5 {[%clk 00:55:53]}
{[%emt 00:00:05]} Rxf5 {[%clk 00:25:17]} {[%emt 00:00:06]} 34. Qh4 {[%clk
00:55:50]} {[%emt 00:00:32]} Bf6 {[%clk 00:25:27]} {[%emt 00:00:21]} 35. Qh3
{[%clk 00:56:14]} {[%emt 00:00:05]} Rg5+ {[%clk 00:25:01]} {[%emt 00:00:57]} 36.
Kf3 {[%clk 00:56:37]} {[%emt 00:00:07]} 1-0

[Event "Kvibergspelen September 2019"]
[Site "Prioritet Serneke Arena, Krutvagen 2, Gothenburg, Sweden"]
[Date "2019.09.28"]
[Round "6.17"]
[White "Attefall, Fredrik"]
[Black "Cramling, Pia"]
[Result "0-1"]
[TimeControl "15 minutes + 5 seconds per move from move one (Round 1 - 4) / 90 minutes + 30 seconds per move from move one (Round 5 - 8)"]
[BlackTitle "GM"]
[WhiteFideId "1706357"]
[BlackFideId "1700030"]
[WhiteElo "2040"]
[BlackElo "2487"]

1. c4 {[%clk 01:30:57]} {[%emt 00:00:02]} b6 {[%clk 01:27:02]} {[%emt
00:03:52]} 2. d4 {[%clk 01:29:28]} {[%emt 00:02:05]} Bb7 {[%clk 01:27:23]}
{[%emt 00:00:09]} 3. Nc3 {[%clk 01:29:36]} {[%emt 00:00:22]} e6 {[%clk
01:27:02]} {[%emt 00:00:50]} 4. Nf3 {[%clk 01:24:28]} {[%emt 00:05:39]} Bb4
{[%clk 01:22:50]} {[%emt 00:04:41]} 5. a3 {[%clk 01:19:59]} {[%emt 00:05:00]}
Bxc3+ {[%clk 01:23:02]} {[%emt 00:00:17]} 6. bxc3 {[%clk 01:20:24]} {[%emt
00:00:06]} Nf6 {[%clk 01:22:45]} {[%emt 00:00:46]} 7. Bg5 {[%clk 01:10:22]}
{[%emt 00:10:32]} h6 {[%clk 01:21:30]} {[%emt 00:01:45]} 8. Bxf6 {[%clk
01:06:33]} {[%emt 00:04:20]} Qxf6 {[%clk 01:21:55]} {[%emt 00:00:05]} 9. e3
{[%clk 01:06:07]} {[%emt 00:00:56]} c5 {[%clk 01:18:35]} {[%emt 00:03:49]} 10.
Be2 {[%clk 01:05:46]} {[%emt 00:00:51]} O-O {[%clk 01:14:28]} {[%emt 00:04:37]}
11. O-O {[%clk 01:04:58]} {[%emt 00:01:18]} d6 {[%clk 01:07:55]} {[%emt
00:07:03]} 12. Qd3 {[%clk 01:02:55]} {[%emt 00:02:32]} Nc6 {[%clk 01:02:10]}
{[%emt 00:06:16]} 13. e4 {[%clk 00:55:43]} {[%emt 00:07:42]} cxd4 {[%clk
01:01:20]} {[%emt 00:01:20]} 14. cxd4 {[%clk 00:55:57]} {[%emt 00:00:15]} e5
{[%clk 00:59:49]} {[%emt 00:02:01]} 15. d5 {[%clk 00:52:03]} {[%emt 00:04:25]}
Na5 {[%clk 00:59:46]} {[%emt 00:00:32]} 16. Nd2 {[%clk 00:51:55]} {[%emt
00:00:38]} Rac8 {[%clk 00:57:52]} {[%emt 00:02:24]} 17. Rac1 {[%clk 00:49:43]}
{[%emt 00:02:42]} Ba6 {[%clk 00:57:45]} {[%emt 00:00:37]} 18. Qe3 {[%clk
00:45:38]} {[%emt 00:04:36]} Rc7 {[%clk 00:53:17]} {[%emt 00:04:55]} 19. Rc3
{[%clk 00:42:37]} {[%emt 00:03:33]} Rc5 {[%clk 00:53:00]} {[%emt 00:00:47]} 20.
Rfc1 {[%clk 00:37:51]} {[%emt 00:05:16]} Rfc8 {[%clk 00:53:08]} {[%emt
00:00:22]} 21. a4 {[%clk 00:32:38]} {[%emt 00:05:45]} R8c7 {[%clk 00:50:09]}
{[%emt 00:03:27]} 22. Qd3 {[%clk 00:30:58]} {[%emt 00:02:08]} Bc8 {[%clk
00:47:13]} {[%emt 00:03:28]} 23. Nb3 {[%clk 00:29:26]} {[%emt 00:02:03]} Nxb3
{[%clk 00:47:36]} {[%emt 00:00:07]} 24. Rxb3 {[%clk 00:29:52]} {[%emt
00:00:04]} Bd7 {[%clk 00:46:08]} {[%emt 00:01:57]} 25. Rb4 {[%clk 00:29:37]}
{[%emt 00:00:46]} Qg5 {[%clk 00:45:14]} {[%emt 00:01:23]} 26. Qe3 {[%clk
00:28:13]} {[%emt 00:01:55]} Qxe3 {[%clk 00:42:08]} {[%emt 00:03:35]} 27. fxe3
{[%clk 00:28:38]} {[%emt 00:00:05]} Kf8 {[%clk 00:42:28]} {[%emt 00:00:09]} 28.
Kf2 {[%clk 00:28:16]} {[%emt 00:00:53]} Ke7 {[%clk 00:42:43]} {[%emt 00:00:15]}
29. Ra1 {[%clk 00:25:02]} {[%emt 00:03:45]} Ra5 {[%clk 00:40:10]} {[%emt
00:03:03]} 30. Bd1 {[%clk 00:22:57]} {[%emt 00:02:34]} f5 {[%clk 00:39:23]}
{[%emt 00:01:16]} 31. exf5 {[%clk 00:21:55]} {[%emt 00:01:34]} Bxf5 {[%clk
00:39:45]} {[%emt 00:00:06]} 32. Ke2 {[%clk 00:20:19]} {[%emt 00:02:08]} Rac5
{[%clk 00:28:32]} {[%emt 00:11:42]} 33. Bb3 {[%clk 00:19:46]} {[%emt 00:01:03]}
Bd7 {[%clk 00:23:41]} {[%emt 00:05:20]} 34. e4 {[%clk 00:19:49]} {[%emt
00:00:28]} Be8 {[%clk 00:23:49]} {[%emt 00:00:22]} 35. Kd3 {[%clk 00:19:59]}
{[%emt 00:00:21]} Kd8 {[%clk 00:23:43]} {[%emt 00:00:36]} 36. Rf1 {[%clk
00:19:29]} {[%emt 00:00:59]} Ke7 {[%clk 00:23:07]} {[%emt 00:01:06]} 37. Rf2
{[%clk 00:18:49]} {[%emt 00:01:11]} Bd7 {[%clk 00:22:05]} {[%emt 00:01:31]} 38.
Rf1 {[%clk 00:18:19]} {[%emt 00:01:01]} Rc8 {[%clk 00:22:10]} {[%emt 00:00:25]}
39. Rf2 {[%clk 00:17:32]} {[%emt 00:01:17]} Rg8 {[%clk 00:18:52]} {[%emt
00:03:47]} 40. Bd1 {[%clk 00:17:36]} {[%emt 00:00:26]} Ra5 {[%clk 00:17:14]}
{[%emt 00:02:08]} 41. Kc3 {[%clk 00:17:16]} {[%emt 00:00:51]} Be8 {[%clk
00:16:23]} {[%emt 00:01:20]} 42. Kb3 {[%clk 00:16:33]} {[%emt 00:01:14]} Rf8
{[%clk 00:16:20]} {[%emt 00:00:33]} 43. Rxf8 {[%clk 00:16:21]} {[%emt
00:00:43]} Kxf8 {[%clk 00:16:48]} {[%emt 00:00:01]} 44. Ka3 {[%clk 00:16:34]}
{[%emt 00:00:18]} Ke7 {[%clk 00:16:22]} {[%emt 00:00:55]} 45. Rb2 {[%clk
00:16:40]} {[%emt 00:00:24]} Rc5 {[%clk 00:15:38]} {[%emt 00:01:14]} 46. Kb4
{[%clk 00:17:00]} {[%emt 00:00:11]} Bg6 {[%clk 00:14:50]} {[%emt 00:01:17]} 47.
Bc2 {[%clk 00:16:38]} {[%emt 00:00:53]} Be8 {[%clk 00:09:22]} {[%emt 00:05:57]}
48. Rb1 {[%clk 00:16:40]} {[%emt 00:00:29]} Bd7 {[%clk 00:09:25]} {[%emt
00:00:26]} 49. Rf1 {[%clk 00:16:56]} {[%emt 00:00:13]} Rc8 {[%clk 00:08:57]}
{[%emt 00:00:59]} 50. Bd1 {[%clk 00:16:47]} {[%emt 00:00:40]} Rg8 {[%clk
00:06:09]} {[%emt 00:03:17]} 51. Bh5 {[%clk 00:16:36]} {[%emt 00:00:41]} g6
{[%clk 00:06:29]} {[%emt 00:00:09]} 52. Bd1 {[%clk 00:16:49]} {[%emt 00:00:18]}
Rc8 {[%clk 00:05:22]} {[%emt 00:01:37]} 53. Rf2 {[%clk 00:16:24]} {[%emt
00:00:55]} h5 {[%clk 00:05:30]} {[%emt 00:00:21]} 54. Rf1 {[%clk 00:13:52]}
{[%emt 00:03:02]} h4 {[%clk 00:05:33]} {[%emt 00:00:27]} 55. Rf2 {[%clk
00:14:03]} {[%emt 00:00:19]} Rg8 {[%clk 00:04:07]} {[%emt 00:01:57]} 56. h3
{[%clk 00:13:34]} {[%emt 00:00:59]} Rf8 {[%clk 00:02:47]} {[%emt 00:01:50]} 57.
Rxf8 {[%clk 00:12:08]} {[%emt 00:01:56]} a5+ {[%clk 00:02:26]} {[%emt
00:00:51]} 58. Kc3 {[%clk 00:12:21]} {[%emt 00:00:17]} Kxf8 {[%clk 00:02:55]}
{[%emt 00:00:02]} 59. Kd3 {[%clk 00:12:06]} {[%emt 00:00:45]} g5 {[%clk
00:02:12]} {[%emt 00:01:11]} 60. Ke3 {[%clk 00:12:13]} {[%emt 00:00:24]} g4
{[%clk 00:02:18]} {[%emt 00:00:24]} 61. hxg4 {[%clk 00:09:45]} {[%emt
00:02:59]} Kg7 {[%clk 00:02:44]} {[%emt 00:00:04]} 62. g3 {[%clk 00:06:31]}
{[%emt 00:03:45]} h3 {[%clk 00:03:05]} {[%emt 00:00:08]} 63. Kf2 {[%clk
00:06:58]} {[%emt 00:00:03]} Kg6 {[%clk 00:03:27]} {[%emt 00:00:08]} 64. Kg1
{[%clk 00:07:16]} {[%emt 00:00:12]} Kg5 {[%clk 00:03:52]} {[%emt 00:00:04]} 65.
Kh2 {[%clk 00:07:36]} {[%emt 00:00:10]} Bxg4 {[%clk 00:04:01]} {[%emt
00:00:21]} 66. Bc2 {[%clk 00:07:50]} {[%emt 00:00:17]} Kh5 {[%clk 00:02:35]}
{[%emt 00:01:55]} 67. Bb3 {[%clk 00:07:28]} {[%emt 00:00:53]} Bf3 {[%clk
00:02:18]} {[%emt 00:00:45]} 68. Kxh3 {[%clk 00:05:47]} {[%emt 00:02:14]} Bxe4
{[%clk 00:02:43]} {[%emt 00:00:04]} 69. Kh2 {[%clk 00:04:12]} {[%emt 00:02:05]}
Kg4 {[%clk 00:02:47]} {[%emt 00:00:26]} 70. Bd1+ {[%clk 00:04:17]} {[%emt
00:00:25]} Bf3 {[%clk 00:02:46]} {[%emt 00:00:30]} 71. Bc2 {[%clk 00:04:33]}
{[%emt 00:00:15]} e4 {[%clk 00:02:30]} {[%emt 00:00:45]} 72. Kg1 {[%clk
00:03:55]} {[%emt 00:01:08]} Kxg3 {[%clk 00:02:54]} {[%emt 00:00:06]} 73. Kf1
{[%clk 00:04:20]} {[%emt 00:00:05]} e3 {[%clk 00:03:03]} {[%emt 00:00:20]} 74.
Ke1 {[%clk 00:04:42]} {[%emt 00:00:09]} Kf4 {[%clk 00:03:26]} {[%emt 00:00:07]}
75. Bd1 {[%clk 00:02:25]} {[%emt 00:02:47]} Bxd1 {[%clk 00:03:43]} {[%emt
00:00:13]} 76. Kxd1 {[%clk 00:02:53]} {[%emt 00:00:02]} Ke4 {[%clk 00:04:08]}
{[%emt 00:00:05]} 0-1